bitfinex-derivatives/quotes_SOLF0:USTF0_20251216
["timestamp","ask_amount","ask_price","bid_price","bid_amount"]
[1765909123784,0.00230962,127.32,127.31,12.82101735]
[1765909125193,0.00230962,127.32,127.31,14.40101735]
[1765909125395,0.38,127.38,127.35,3.38]
[1765909125396,7.4975,127.38,127.35,3.38]
[1765909125801,66.82,127.4,127.38,3.38]
[1765909126299,67.25,127.4,127.38,3.38]
[1765909126500,67.30108466,127.4,127.38,3.43807597]
[1765909126896,0.43,127.39,127.38,0.05807597]
[1765909127297,67.30108466,127.4,127.38,0.05807597]
[1765909127498,74.36698466,127.4,127.38,3.43807597]
[1765909128095,66.87108466,127.4,127.38,3.43807597]
[1765909128494,0.05108466,127.4,127.38,3.43807597]
[1765909133496,0.48108466,127.4,127.38,0.05807597]
[1765909134205,2.85120201,127.4,127.38,0.05807597]
[1765909134804,9.91720201,127.4,127.38,0.05807597]
[1765909135006,0.43,127.39,127.38,0.05807597]
[1765909135592,2.80011735,127.39,127.38,0.05807597]
[1765909136299,73.89708466,127.4,127.38,3.43807597]
[1765909136501,74.32708466,127.4,127.38,3.43807597]
[1765909136705,0.43,127.39,127.38,0.05807597]
[1765909137804,2.80011735,127.39,127.38,0.05807597]
[1765909138005,2.37011735,127.39,127.38,0.05807597]
[1765909138404,66.83108466,127.4,127.38,3.43807597]
[1765909138596,67.26108466,127.4,127.38,3.43807597]
[1765909140707,0.43,127.39,127.38,0.05807597]
[1765909141014,2.80011735,127.39,127.38,0.05807597]
[1765909141208,9.86651735,127.39,127.38,0.05807597]
[1765909144313,7.4964,127.39,127.38,0.05807597]
[1765909144507,9.86651735,127.39,127.38,0.05807597]
[1765909146112,0.43,127.39,127.38,0.05807597]
[1765909146319,2.37011735,127.39,127.38,0.05807597]
[1765909146911,2.37011735,127.39,127.38,3.24807597]
[1765909147908,2.37011735,127.39,127.38,0.05807597]
[1765909149917,9.43651735,127.39,127.38,0.05807597]
[1765909152310,9.87651735,127.39,127.38,0.05807597]
[1765909153405,0.05108466,127.4,127.38,0.05807597]
[1765909153406,0.05108466,127.4,127.38,3.24807597]
[1765909153611,0.49108466,127.4,127.38,3.24807597]
[1765909154018,9.87651735,127.39,127.38,0.05807597]
[1765909160427,76.65651735,127.39,127.38,0.05807597]
[1765909161717,74.2864,127.39,127.38,0.05807597]
[1765909162824,7.0664,127.39,127.38,0.05807597]
[1765909163129,0.05108466,127.4,127.38,3.24807597]
[1765909163732,7.55698466,127.4,127.38,0.05807597]
[1765909164926,0.05108466,127.4,127.38,3.24807597]
[1765909165230,0.49108466,127.4,127.38,0.05807597]
[1765909165432,0.44,127.39,127.38,0.05807597]
[1765909165929,2.85884314,127.4,127.38,3.24807597]
[1765909166429,2.41884314,127.4,127.38,3.24807597]
[1765909167430,0.05108466,127.4,127.38,3.24807597]
[1765909169738,0.05108466,127.4,127.38,10.31497597]
[1765909170435,0.05108466,127.4,127.38,3.24807597]
[1765909173631,0.05108466,127.4,127.38,10.31487597]
[1765909174035,0.05108466,127.4,127.39,3.2]
[1765909174229,0.05108466,127.4,127.39,10.2664]
[1765909174932,0.05108466,127.4,127.39,3.2]
[1765909181045,0.05108466,127.4,127.39,10.2664]
[1765909185632,0.48108466,127.4,127.38,3.26807597]
[1765909186041,0.05108466,127.4,127.38,3.26807597]
[1765909188547,0.05108466,127.4,127.39,3.21]
[1765909189843,0.48108466,127.4,127.38,0.05807597]
[1765909190443,7.54748466,127.4,127.38,0.05807597]
[1765909190645,0.43,127.39,127.38,0.05807597]
[1765909190948,0.43,127.36,127.33,3.21]
[1765909191250,0.43,127.35,127.33,3.21]
[1765909192048,0.48543254,127.35,127.33,0.05489252]
[1765909192236,0.43,127.34,127.33,0.05489252]
[1765909193245,4.12880434,127.34,127.33,0.05489252]
[1765909194152,7.55423254,127.35,127.33,0.05489252]
[1765909194347,0.43,127.34,127.33,0.05489252]
[1765909195451,4.12880434,127.34,127.33,0.05489252]
[1765909196159,0.38,127.3,127.27,3.21]
[1765909196947,0.38,127.31,127.27,3.21]
[1765909197145,0.05366642,127.3,127.28,3.26640994]
[1765909198748,0.43366642,127.3,127.28,3.26640994]
[1765909199453,0.05366642,127.3,127.28,3.26640994]
[1765909200654,0.00366642,127.3,127.28,3.26640994]
[1765909202250,0.00366642,127.3,127.29,3.21]
[1765909205155,0.00366642,127.3,127.25,104.07861428]
[1765909205358,0.00366642,127.3,127.26,3.69880434]
[1765909206161,0.00366642,127.3,127.27,0.05406723]
[1765909206551,0.00366642,127.3,127.28,7.0724]
[1765909207054,0.00366642,127.3,127.28,12.35120434]
[1765909207255,0.00366642,127.3,127.29,3.39]
[1765909208151,10.2984,127.36,127.32,3.39]
[1765909208553,7.0684,127.36,127.32,3.39]
[1765909209363,7.0684,127.36,127.29,110.0043]
[1765909209364,0.05849521,127.35,127.34,3.39]
[1765909209864,10.35719521,127.35,127.33,3.43978702]
[1765909211650,0.05849521,127.35,127.33,3.43978702]
[1765909214267,7.12719521,127.35,127.33,3.43978702]
[1765909218071,10.2992,127.34,127.33,0.04978702]
[1765909218372,13.99800434,127.34,127.33,0.04978702]
[1765909218567,82.37800434,127.34,127.33,0.04978702]
[1765909219366,3.23,127.3,127.28,3.39]
[1765909220259,3.23,127.3,127.28,3.44969145]
[1765909220462,3.28978653,127.3,127.28,3.44969145]
[1765909223167,3.28978653,127.3,127.28,0.05969145]
[1765909223369,10.302,127.29,127.28,0.05969145]
[1765909225676,3.23,127.24,127.21,3.39]
[1765909226466,3.23,127.24,127.2,3.39]
[1765909226467,3.23,127.23,127.2,3.39]
[1765909226670,3.28057509,127.23,127.2,3.45009237]
[1765909226871,10.35597509,127.23,127.2,3.45009237]
[1765909227074,3.23,127.22,127.2,3.45009237]
[1765909227668,10.35597509,127.23,127.2,3.45009237]
[1765909227874,0.05057509,127.23,127.2,3.45009237]
[1765909229577,0.05057509,127.23,127.22,3.39]
[1765909232783,0.00057509,127.23,127.22,3.39]
[1765909233386,66.82,127.27,127.24,3.39]
[1765909233585,12.6741983,127.29,127.24,3.39]
[1765909234381,0.05578247,127.28,127.26,3.34]
[1765909236385,0.05578247,127.28,127.26,10.4136]
[1765909236581,0.05578247,127.28,127.27,3.21]
[1765909236881,2.3716983,127.32,127.27,2.3716983]
[1765909237091,2.3716983,127.32,127.3,3.21]
[1765909237875,2.42182387,127.32,127.3,3.26322446]
[1765909239280,5.64182387,127.32,127.3,0.05322446]
[1765909239484,12.71212387,127.32,127.3,0.05322446]
[1765909239795,3.22,127.31,127.3,0.05322446]
[1765909242184,10.2909,127.31,127.3,0.05322446]
[1765909244595,2.42182387,127.32,127.3,3.26322446]
[1765909244894,0.05012557,127.32,127.3,3.26322446]
[1765909249398,3.22,127.31,127.3,0.05322446]
[1765909250798,10.2909,127.31,127.3,0.05322446]
[1765909261723,3.22,127.31,127.3,0.05322446]
[1765909261914,12.71222387,127.32,127.3,0.05322446]
[1765909262219,3.22,127.31,127.3,0.05322446]
[1765909262409,10.2909,127.31,127.3,0.05322446]
[1765909263519,7.0709,127.31,127.3,3.26322446]
[1765909263719,10.2909,127.31,127.3,0.05322446]
[1765909267324,15.86379707,127.31,127.3,0.05322446]
[1765909267820,15.86379707,127.31,127.3,0.00322446]
[1765909268923,82.68379707,127.31,127.3,0.00322446]
[1765909269119,3.21,127.27,127.24,3.36]
[1765909270212,3.26785416,127.27,127.24,3.41618286]
[1765909270621,3.26785416,127.27,127.24,10.49088286]
[1765909270814,0.05785416,127.27,127.25,3.36]
[1765909271014,3.21,127.26,127.24,0.05618286]
[1765909271213,3.21,127.26,127.24,3.41618286]
[1765909271923,10.2839,127.26,127.24,0.05618286]
[1765909272123,3.21,127.25,127.24,0.05618286]
[1765909272524,11.15459537,127.26,127.24,3.41618286]
[1765909272722,8.78289707,127.26,127.24,3.41618286]
[1765909273120,72.45955246,127.27,127.24,3.41618286]
[1765909273623,69.24955246,127.27,127.25,3.36]
[1765909273820,66.87785416,127.27,127.25,3.36]
[1765909274219,66.87785416,127.27,127.26,3.36]
[1765909274716,66.87785416,127.27,127.24,3.41618286]
[1765909274717,3.26785416,127.27,127.24,3.41618286]
[1765909275729,3.26785416,127.27,127.25,3.36]
[1765909276414,3.26785416,127.27,127.24,7.13088286]
[1765909278527,3.26785416,127.27,127.25,3.36]
[1765909278922,0.05785416,127.27,127.25,3.36]
[1765909279729,5.63955246,127.27,127.24,3.41618286]
[1765909280631,0.05785416,127.27,127.25,3.36]
[1765909282733,0.05785416,127.27,127.26,10.4336]
[1765909285834,0.05785416,127.27,127.26,3.36]
[1765909289541,0.05785416,127.27,127.26,10.4336]
[1765909290140,0.05785416,127.27,127.26,3.36]
[1765909290342,3.26785416,127.27,127.24,10.49038286]
[1765909290542,3.26785416,127.27,127.25,3.36]
[1765909290840,0.05785416,127.27,127.25,3.36]
[1765909291443,0.05785416,127.27,127.26,3.36]
[1765909292051,0.05785416,127.27,127.25,3.36]
[1765909295543,0.05785416,127.27,127.26,7.0736]
[1765909295740,0.05785416,127.27,127.26,10.2936]
[1765909298147,0.05785416,127.27,127.26,17.6323837]
[1765909298353,15.77209613,127.32,127.28,3.22]
[1765909299041,3.22,127.31,127.28,3.22]
[1765909299446,3.27770894,127.31,127.28,3.27117827]
[1765909300650,3.27770894,127.31,127.29,3.22]
[1765909300847,10.34860894,127.31,127.29,3.22]
[1765909301048,0.05770894,127.31,127.29,3.22]
[1765909301945,3.27770894,127.31,127.29,3.22]
[1765909302153,3.22,127.3,127.28,0.05117827]
[1765909303853,10.34860894,127.31,127.28,3.27117827]
[1765909304044,3.22,127.3,127.28,3.27117827]
[1765909304446,10.34860894,127.31,127.28,3.27117827]
[1765909307259,3.22,127.29,127.28,0.05117827]
[1765909310855,15.77329613,127.29,127.28,0.05117827]
[1765909311060,3.22,127.28,127.24,3.22]
[1765909311259,3.22,127.27,127.24,3.22]
[1765909312159,0.0587607,127.27,127.24,3.27152496]
[1765909312559,0.0587607,127.27,127.24,10.61030866]
[1765909312749,0.0587607,127.27,127.25,3.22]
[1765909314070,0.0587607,127.27,127.26,10.2936]
[1765909315956,0.0587607,127.27,127.26,3.22]
[1765909316156,3.2787607,127.27,127.25,10.2942]
[1765909316360,0.0587607,127.27,127.26,3.22]
[1765909317459,0.0587607,127.27,127.26,10.2936]
[1765909317861,15.77209613,127.32,127.29,3.22]
[1765909318373,8.70129613,127.31,127.29,3.22]
[1765909318562,3.22,127.31,127.29,3.22]
[1765909318866,10.2909,127.31,127.29,3.22]
[1765909319166,0.05434375,127.31,127.29,3.27357294]
[1765909319671,3.27434375,127.31,127.29,3.27357294]
[1765909321065,3.22,127.3,127.29,0.05357294]
[1765909322668,10.2914,127.3,127.29,0.05357294]
[1765909322868,13.99635232,127.3,127.29,0.05357294]
[1765909323672,7.0732,127.27,127.24,7.3387837]
[1765909323862,7.0732,127.27,127.24,10.6087837]
[1765909323863,3.41,127.26,127.24,10.6087837]
[1765909324255,3.41,127.26,127.24,3.27]
[1765909324661,3.41,127.26,127.24,10.3447]
[1765909324970,3.46881031,127.26,127.24,10.40106818]
[1765909325371,3.46881031,127.26,127.24,17.73985188]
[1765909325865,0.05881031,127.26,127.24,17.73985188]
[1765909326065,3.46881031,127.26,127.24,17.73985188]
[1765909326457,3.46881031,127.26,127.24,10.66515188]
[1765909326762,3.41,127.25,127.24,0.05636818]
[1765909327567,10.4842,127.25,127.24,0.05636818]
[1765909327968,3.41,127.24,127.19,10.6087837]
[1765909328966,3.41,127.22,127.2,0.05762775]
[1765909330365,0.0502191,127.23,127.2,3.32762775]
[1765909331770,0.0502191,127.23,127.2,10.40452775]
[1765909331975,3.4602191,127.23,127.2,10.40452775]
[1765909332176,0.0502191,127.23,127.21,3.27]
[1765909332969,3.4602191,127.23,127.21,3.27]
[1765909333672,0.0502191,127.23,127.21,3.27]
[1765909334069,3.4602191,127.23,127.2,10.40452775]
[1765909334474,3.4602191,127.23,127.2,3.32762775]
[1765909335776,3.41,127.22,127.2,0.05762775]
[1765909336078,0.0502191,127.23,127.2,3.32762775]
[1765909336383,0.0502191,127.23,127.21,3.27]
[1765909338778,3.4602191,127.23,127.21,3.27]
[1765909339274,3.4602191,127.23,127.2,10.40462775]
[1765909340790,3.41,127.22,127.2,0.05762775]
[1765909340994,3.41,127.22,127.2,3.32762775]
[1765909341591,10.486,127.22,127.2,3.32762775]
[1765909341991,0.0502191,127.23,127.2,3.32762775]
[1765909342195,7.1255191,127.23,127.2,3.32762775]
[1765909342698,3.41,127.22,127.2,0.05762775]
[1765909342995,10.4862,127.22,127.2,0.05762775]
[1765909343191,3.41,127.21,127.2,0.05762775]
[1765909343588,10.4864,127.22,127.2,0.05762775]
[1765909344688,3.41,127.21,127.2,0.05762775]
[1765909345197,10.4864,127.21,127.2,0.05762775]
[1765909346397,3.41,127.21,127.2,0.05762775]
[1765909347096,10.4864,127.21,127.2,0.05762775]
[1765909350898,3.41,127.21,127.2,0.05762775]
[1765909351099,3.4602191,127.23,127.2,3.32762775]
[1765909351495,3.4602191,127.23,127.21,3.27]
[1765909351893,3.4602191,127.23,127.2,10.40432775]
[1765909352098,3.4602191,127.23,127.21,3.27]
[1765909352293,0.0502191,127.23,127.21,3.27]
[1765909353604,0.0502191,127.23,127.22,10.3459]
[1765909356003,0.0502191,127.23,127.22,10.4459]
[1765909357105,0.0502191,127.23,127.22,3.37]
[1765909358814,3.3502191,127.23,127.2,0.05762775]
[1765909359010,3.3502191,127.23,127.2,3.42762775]
[1765909359204,3.3502191,127.23,127.21,3.37]
[1765909360599,3.3502191,127.23,127.2,10.50462775]
[1765909360803,3.3502191,127.23,127.2,0.05762775]
[1765909360804,3.3,127.22,127.2,0.05762775]
[1765909361607,3.3,127.22,127.2,3.42762775]
[1765909365407,3.3502191,127.23,127.21,3.37]
[1765909367212,3.3502191,127.23,127.21,10.4464]
[1765909367713,0.0502191,127.23,127.22,3.37]
[1765909368014,0.0502191,127.23,127.22,10.4459]
[1765909369407,0.0502191,127.23,127.22,3.37]
[1765909371123,0.0502191,127.23,127.21,7.0763]
[1765909371311,3.3502191,127.23,127.21,10.4463]
[1765909371616,0.0502191,127.23,127.22,3.37]
[1765909372812,0.0502191,127.23,127.22,10.4459]
[1765909375415,3.3502191,127.23,127.22,7.0759]
[1765909375613,3.3502191,127.23,127.21,10.4464]
[1765909375812,3.3502191,127.23,127.21,3.37]
[1765909377220,0.0502191,127.23,127.21,3.37]
[1765909377419,7.28085587,127.28,127.23,3.37]
[1765909377420,3.3,127.28,127.23,3.37]
[1765909377719,3.3,127.28,127.22,9.68827202]
[1765909377720,3.3,127.28,127.25,3.37]
[1765909378124,10.3731,127.28,127.25,3.37]
[1765909378422,3.35354237,127.28,127.25,3.42338014]
[1765909378623,3.35354237,127.28,127.25,0.05338014]
[1765909379715,10.3733,127.27,127.25,0.05338014]
[1765909379916,3.3,127.26,127.25,0.05338014]
[1765909382223,10.3733,127.27,127.25,0.05338014]
[1765909384624,10.2736,127.26,127.25,0.05338014]
[1765909391732,3.25354237,127.28,127.25,3.44338014]
[1765909392034,3.2,127.26,127.25,0.05338014]
[1765909392419,2.37311503,127.27,127.25,3.44338014]
[1765909392620,110.07514237,127.28,127.25,3.44338014]
[1765909392621,3.25354237,127.28,127.25,3.44338014]
[1765909394540,10.32614237,127.28,127.25,3.44338014]
[1765909395232,0.05354237,127.28,127.26,3.39]
[1765909400733,3.25354237,127.28,127.25,3.44338014]
[1765909401636,10.32614237,127.28,127.25,3.44338014]
[1765909403729,3.25354237,127.28,127.26,3.39]
[1765909403925,3.25354237,127.28,127.25,0.05338014]
[1765909404127,3.25354237,127.28,127.25,3.44338014]
[1765909405727,10.32614237,127.28,127.25,3.44338014]
[1765909407428,3.25354237,127.28,127.25,7.12728014]
[1765909407626,3.25354237,127.28,127.25,10.51728014]
[1765909411039,10.32624237,127.28,127.25,10.51728014]
[1765909413438,10.32624237,127.28,127.26,3.39]
[1765909415333,3.2,127.27,127.26,3.19]
[1765909415531,10.32624237,127.28,127.26,3.19]
[1765909416439,3.2,127.27,127.25,10.31728014]
[1765909416635,0.05354237,127.28,127.27,3.19]
[1765909416840,0.00354237,127.28,127.27,3.19]
[1765909417535,0.00354237,127.28,127.27,10.2631]
[1765909421032,3.2,127.31,127.27,10.2631]
[1765909421033,23.06277991,127.33,127.3,3.19]
[1765909421343,3.2,127.34,127.3,3.19]
[1765909422046,3.25986752,127.33,127.31,0.05636005]
[1765909422436,3.25986752,127.33,127.31,3.24636005]
[1765909422743,0.05986752,127.33,127.31,3.24636005]
[1765909423746,0.05986752,127.33,127.32,10.2603]
[1765909427246,0.05986752,127.33,127.32,3.19]
[1765909435349,0.05986752,127.33,127.32,10.2603]
[1765909441753,3.2,127.37,127.34,3.19]
[1765909441946,26.84529433,127.37,127.34,3.19]
[1765909442145,33.91279433,127.37,127.34,3.19]
[1765909442654,33.91279433,127.37,127.35,3.19]
[1765909442655,0.05330124,127.37,127.35,3.19]
[1765909443657,3.25330124,127.37,127.35,3.19]
[1765909444542,3.32,127.36,127.34,3.32255096]
[1765909444745,3.32,127.36,127.34,0.05255096]
[1765909445355,10.3886,127.35,127.34,0.05255096]
[1765909447052,23.73814435,127.37,127.34,3.32255096]
[1765909447252,27.05814435,127.37,127.34,3.32255096]
[1765909447452,3.32,127.36,127.34,0.05255096]
[1765909448252,3.32,127.36,127.34,3.32255096]
[1765909448253,10.3886,127.36,127.34,3.32255096]
[1765909448453,23.73814435,127.37,127.34,3.32255096]
[1765909448454,27.05814435,127.37,127.34,3.32255096]
[1765909448854,3.32,127.36,127.34,3.32255096]
[1765909450062,10.3883,127.36,127.34,0.05255096]
[1765909450458,3.32,127.35,127.34,0.05255096]
[1765909451854,10.3881,127.36,127.34,0.05255096]
[1765909452566,1.36679628,127.39,127.34,3.32255096]
[1765909452761,3.32,127.43,127.38,3.27]
[1765909453968,3.32,127.43,127.39,10.38886072]
[1765909453969,0.05618489,127.42,127.39,10.38886072]
[1765909454160,0.05618489,127.42,127.4,3.27]
[1765909454558,0.05618489,127.42,127.41,3.27]
[1765909455364,14.0817473,127.49,127.43,3.27]
[1765909455962,3.32,127.48,127.43,3.27]
[1765909456167,3.32,127.48,127.44,3.27]
[1765909456368,3.37546916,127.47,127.45,0.0583179]
[1765909456666,3.37546916,127.47,127.45,3.3283179]
[1765909457069,0.05546916,127.47,127.45,3.3283179]
[1765909457767,3.37546916,127.47,127.45,3.3283179]
[1765909457966,10.43766916,127.47,127.45,0.0583179]
[1765909458166,3.32,127.46,127.45,0.0583179]
[1765909463169,3.32,127.43,127.39,3.27]
[1765909463977,3.32,127.42,127.39,3.27]
[1765909464276,3.37597967,127.42,127.39,3.32477523]
[1765909465573,0.05597967,127.42,127.39,3.32477523]
[1765909466072,3.37597967,127.42,127.39,3.32477523]
[1765909467661,3.37597967,127.42,127.4,3.27]
[1765909470273,3.37597967,127.42,127.39,10.39107523]
[1765909471973,3.37597967,127.42,127.4,3.27]
[1765909472181,0.05597967,127.42,127.41,3.27]
[1765909472668,0.05597967,127.42,127.41,10.3353]
[1765909473381,2.36669813,127.46,127.43,3.27]
[1765909473382,3.32,127.46,127.43,3.27]
[1765909473571,3.32,127.47,127.43,3.27]
[1765909473873,3.32,127.47,127.4,112.27809813]
[1765909473874,69.9,127.48,127.45,3.28]
[1765909474072,3.14,127.48,127.45,3.28]
[1765909474272,3.19851808,127.48,127.45,3.33525592]
[1765909475570,3.19851808,127.48,127.45,10.39835592]
[1765909476783,0.05851808,127.48,127.47,3.12]
[1765909476981,3.17851808,127.48,127.46,10.1825]
[1765909479481,0.05851808,127.48,127.46,10.1825]
[1765909479983,0.05851808,127.48,127.47,10.182]
[1765909480679,72.24669813,127.52,127.48,3.12]
[1765909480881,3.12,127.51,127.48,3.12]
[1765909481282,3.12,127.5,127.47,10.182]
[1765909481683,3.17160513,127.5,127.47,10.23688575]
[1765909482389,3.12,127.49,127.47,0.05488575]
[1765909484584,5.48669813,127.48,127.47,0.05488575]
[1765909485691,12.54809813,127.48,127.47,0.05488575]
[1765909486281,5.48669813,127.48,127.47,0.05488575]
[1765909486491,10.1809,127.49,127.47,0.05488575]
[1765909488494,3.12,127.48,127.47,0.05488575]
[1765909488974,12.54809813,127.48,127.47,0.05488575]
[1765909491085,12.54809813,127.48,127.47,0.00488575]
[1765909491086,79.28809813,127.48,127.47,0.00488575]
[1765909491395,80.84809813,127.48,127.47,0.00488575]
[1765909493684,3.12,127.47,127.4,10.1859]
[1765909494005,3.12,127.43,127.41,3.12]
[1765909494291,5.48669813,127.44,127.41,3.12]
[1765909494690,12.60141986,127.44,127.41,3.17052841]
[1765909496091,3.12,127.43,127.41,3.17052841]
[1765909496596,9.48141986,127.44,127.41,3.17052841]
[1765909496792,12.60141986,127.44,127.41,3.17052841]
[1765909500397,3.12,127.43,127.41,3.17052841]
[1765909501287,12.60141986,127.44,127.41,3.17052841]
[1765909503483,3.17092173,127.44,127.41,10.23562841]
[1765909503684,0.05092173,127.44,127.42,3.12]
[1765909504095,0.05092173,127.44,127.43,3.1]
[1765909504296,0.05092173,127.44,127.43,10.1642]
[1765909505296,69.93,127.48,127.44,3.1]
[1765909505498,3.19,127.47,127.44,3.1]
[1765909506097,76.9914,127.48,127.45,3.1]
[1765909506288,69.98508931,127.48,127.45,3.15191548]
[1765909506487,3.24508931,127.48,127.45,3.15191548]
[1765909506695,0.05508931,127.48,127.46,3.1]
[1765909509201,0.05508931,127.48,127.46,10.1625]
[1765909509405,0.05508931,127.48,127.47,3.1]
[1765909511906,0.05508931,127.48,127.47,10.162]
[1765909512300,3.19,127.53,127.5,10.1603]
[1765909512701,3.19,127.53,127.5,3.1]
[1765909513005,10.2493,127.52,127.49,5.46669813]
[1765909513202,10.2493,127.52,127.49,3.14939993]
[1765909513614,3.19,127.51,127.49,0.04939993]
[1765909514207,3.19,127.5,127.49,0.04939993]
[1765909514405,10.2498,127.51,127.49,0.04939993]
[1765909515197,3.19,127.51,127.49,0.04939993]
[1765909516000,10.2497,127.52,127.49,5.51237798]
[1765909516400,3.19,127.51,127.49,5.51237798]
[1765909516902,3.19,127.53,127.5,3.1]
[1765909518600,3.19,127.53,127.5,10.1601]
[1765909519002,3.19,127.52,127.49,3.14939993]
[1765909519304,3.19,127.52,127.49,0.04939993]
[1765909520009,10.2498,127.51,127.49,0.04939993]
[1765909521104,3.19,127.5,127.49,0.04939993]
[1765909525108,10.2503,127.5,127.49,0.04939993]
[1765909528718,3.19,127.5,127.49,0.04939993]
[1765909529716,7.0598,127.51,127.49,3.14939993]
[1765909530015,10.2498,127.51,127.49,3.14939993]
[1765909532417,10.2498,127.51,127.49,0.04939993]
[1765909532713,3.19,127.5,127.49,0.04939993]
[1765909535522,3.11,127.51,127.49,3.32939993]
[1765909536621,3.11,127.51,127.49,10.39009993]
[1765909537816,3.11,127.5,127.49,0.04939993]
[1765909540924,10.1703,127.5,127.49,0.04939993]
[1765909560721,3.11,127.5,127.49,0.04939993]
[1765909560925,7.0598,127.51,127.49,3.32939993]
[1765909560926,10.1698,127.51,127.49,3.32939993]
[1765909561333,100.74209993,127.54,127.49,3.32939993]
[1765909561334,10.1689,127.53,127.49,3.32939993]
[1765909561928,3.11,127.52,127.5,3.28]
[1765909562128,7.0589,127.53,127.5,3.28]
[1765909562329,3.11,127.53,127.5,3.28]
[1765909563026,3.11,127.53,127.51,3.28]
[1765909563730,3.11,127.52,127.5,10.2503]
[1765909563934,3.11,127.52,127.5,7.0603]
[1765909564439,3.11,127.52,127.5,10.2503]
[1765909565030,10.1694,127.52,127.5,3.19]
[1765909565534,3.11,127.52,127.5,3.19]
[1765909566331,10.1693,127.52,127.5,3.19]
[1765909567841,10.1693,127.52,127.49,10.30029993]
[1765909568036,3.11,127.53,127.5,3.19]
[1765909568646,10.1687,127.53,127.51,3.19]
[1765909570038,3.11,127.52,127.5,10.2503]
[1765909570548,3.11,127.52,127.5,3.19]
[1765909570940,66.74,127.54,127.49,0.04939993]
[1765909570941,3.11,127.51,127.49,0.04939993]
[1765909571143,3.11,127.51,127.46,13.36844219]
[1765909571144,3.11,127.5,127.46,7.29846326]
[1765909571343,3.11,127.49,127.44,3.19]
[1765909571551,3.11,127.48,127.44,3.19]
[1765909572143,3.69250181,127.49,127.39,128.12211238]
[1765909572144,3.11,127.45,127.42,10.48846326]
[1765909572442,0.05606085,127.45,127.43,3.19]
[1765909573343,0.05606085,127.45,127.42,0.05848991]
[1765909573344,3.16606085,127.45,127.42,0.05848991]
[1765909573752,3.11,127.43,127.42,0.05848991]
[1765909575745,10.75630181,127.44,127.36,10.2576]
[1765909575746,3.11,127.41,127.36,10.2576]
[1765909575946,3.11,127.41,127.36,3.19]
[1765909576855,3.11,127.39,127.37,0.05842134]
[1765909578150,6.80250181,127.38,127.37,0.05842134]
[1765909579253,73.54250181,127.38,127.37,0.05842134]
[1765909582461,69.85,127.38,127.37,0.05842134]
[1765909584253,73.54250181,127.38,127.37,0.05842134]
[1765909587053,66.74,127.38,127.37,0.05842134]
[1765909587959,66.74,127.38,127.37,3.24842134]
[1765909588153,66.74,127.38,127.37,0.05842134]
[1765909588353,66.74,127.38,127.37,3.24842134]
[1765909589158,66.74,127.38,127.37,0.05842134]
[1765909591576,3.11,127.39,127.37,0.05842134]
[1765909593468,3.11,127.39,127.37,3.24842134]
[1765909593670,3.16730051,127.4,127.38,3.16]
[1765909593870,0.05730051,127.4,127.38,3.16]
[1765909594263,0.05730051,127.4,127.38,10.2269]
[1765909595370,0.05730051,127.4,127.39,10.1764]
[1765909598669,0.05730051,127.4,127.39,3.11]
[1765909601377,3.24730051,127.4,127.37,12.60278725]
[1765909601673,3.24730051,127.4,127.38,3.11]
[1765909602269,0.05730051,127.4,127.38,3.11]
[1765909603568,3.24730051,127.4,127.38,3.11]
[1765909604275,3.19,127.39,127.37,0.05842134]
[1765909604478,3.19,127.39,127.37,3.16842134]
[1765909604678,10.31330051,127.4,127.37,3.16842134]
[1765909608280,3.19,127.38,127.37,0.05842134]
[1765909609679,10.257,127.38,127.37,0.05842134]
[1765909610478,3.19,127.38,127.37,0.05842134]
[1765909610868,10.2565,127.39,127.37,0.05842134]
[1765909612570,3.19,127.38,127.37,0.05842134]
[1765909613484,10.257,127.38,127.37,0.05842134]
[1765909615782,3.19,127.36,127.31,72.25686591]
[1765909615986,3.19,127.35,127.3,3.11]
[1765909616184,3.19,127.33,127.3,7.0714]
[1765909616591,3.19,127.31,127.28,3.11]